Cogmind - Beta 15 @@@ ROGUE MODE // 2025.09.23 @ 10:25:55 Player: Tereza Result: Core destroyed Performance ------------- Evolutions (4) 2000 Regions Visited (12) 2400 Robots Destroyed (253) 1265 Value Destroyed (9861) 9861 Prototype IDs (14) 280 Alien Tech Used (0) 0 Bonus (5013) 5013 TOTAL SCORE: 20819 Bonus ------- High Alert Combat Kills 1707 Follower Combat Kills 206 Entered Garrisons 600 Used RIF Installer 2000 Entered DSFs 500 Cogmind --------- Core Integrity 0/850 Matter 258/300 Energy 33/350 System Corruption 0% Temperature Critical (790) Movement Treading (250) Ox1 Location -6/DSF Parts ------- > --- POWER (2) -------- Angular Momentum Engine Micro Antimatter Reactor > --- PROPULSION (4) --- Improved Heavy Treads Armored Heavy Treads > --- UTILITY (6) ------ Improved Cooling System High-capacity Storage Unit Improved Signal Interpreter Layered Medium Armor Plating Graphene Brace Relay Coupler [NC] (28) > --- WEAPON (3) ------- Heavy Gatling Laser Heavy Gatling Laser Heavy Ion Cannon > --- INVENTORY (20) --- Light Particle Reactor Micro Antimatter Reactor Improved Medium Treads Improved Medium Treads Improved Medium Treads Improved Heavy Treads Biometal Medium Treads Advanced Matter Compressor (400) Improved Sensor Array Improved Light Armor Plating Relay Coupler [Grunt] (31) Relay Coupler [Sentry] (22) Plasma Rifle Plasma Rifle Plasma Rifle Matter Neutralizer Heavy Machine Gun Fusion Bomb Launcher Remote Datajack Peak State ------------ > --- POWER ------------ Micro Antimatter Reactor Micro Antimatter Reactor > --- PROPULSION ------- Improved Heavy Treads Armored Heavy Treads > --- UTILITY ---------- High-capacity Storage Unit Improved Matter Compressor Improved Signal Interpreter Layered Medium Armor Plating Graphene Brace Relay Coupler [NC] > --- WEAPON ----------- Heavy Gatling Laser Heavy Gatling Laser Heavy Ion Cannon > --- INVENTORY -------- Light Particle Reactor Micro Antimatter Reactor Improved Medium Treads Improved Medium Treads Improved Medium Treads Improved Heavy Treads Biometal Medium Treads Advanced Matter Compressor Improved Sensor Array Improved Light Armor Plating Relay Coupler [Grunt] Relay Coupler [Sentry] Matter Neutralizer Flak Gun Flak Gun Flak Gun Coil Gun Fusion Bomb Launcher Remote Datajack [Rating: 99] Favorites ----------- Power Heavy Ion Engine Engine Heavy Ion Engine Power Core Micro Nuclear Core Reactor Micro Antimatter Reactor Propulsion Light Treads Treads Light Treads Utility Huge Storage Unit Device Shield Generator Storage Huge Storage Unit Processor Improved Targeting Computer Hackware Relay Coupler [NC] Protection Improved Medium Armor Plating Weapon Improved Assault Rifle Energy Gun Cooled Pulse Rifle Energy Cannon Heavy Ion Cannon Ballistic Gun Improved Assault Rifle Launcher Missile Launcher Special Weapon Remote Datajack Slashing Weapon Mining Claw Build | -11 -10 -9 -9 -8 -8 -8 -8 -7 -6 -6 -6 -6 ------- Run | Yrd Mat Mat Min Mat Gar Mat Gar Fac Fac Gar Fac DSF Slots Evolved 8 | . . 2 . 2 . . . 2 2 . . . Power 1 | . . . . . . . . . 1 . . . Propulsion 2 | . . . . 2 . . . . . . . . Utility 4 | . . 1 . . . . . 2 1 . . . Weapon 1 | . . 1 . . . . . . . . . . Parts Attached 143 | 6 11 20 2 26 12 3 6 22 6 27 . 2 Power 17 | 1 . 4 . 2 4 . . 2 . 3 . 1 Engine 11 | 1 . 4 . . 2 . . 2 . 1 . 1 Core 4 | . . . . 2 2 . . . . . . . Reactor 2 | . . . . . . . . . . 2 . . Propulsion 47 | 2 1 7 . 13 3 2 4 5 3 7 . . Treads 47 | 2 1 7 . 13 3 2 4 5 3 7 . . Leg . | . . . . . . . . . . . . . Wheel . | . . . . . . . . . . . . . Hover . | . . . . . . . . . . . . . Flight . | . . . . . . . . . . . . . Utility 41 | 1 5 4 1 1 3 1 1 10 3 10 . 1 Device 12 | . 1 . . 1 . 1 1 3 1 4 . . Storage 7 | 1 3 1 . . . . . 1 . . . 1 Processor 6 | . . 2 1 . 1 . . 1 1 . . . Hackware 6 | . . . . . . . . 3 1 2 . . Protection 10 | . 1 1 . . 2 . . 2 . 4 . . Artifact . | . . . . . . . . . . . . . Weapon 38 | 2 5 5 1 10 2 . 1 5 . 7 . . Energy Gun 6 | . 1 . . . . . . 4 . 1 . . Energy Cannon 1 | . . . . . . . . . . 1 . . Ballistic Gun 25 | 2 3 4 . 10 1 . 1 . . 4 . . Ballistic Cannon . | . . . . . . . . . . . . . Launcher 4 | . . 1 1 . 1 . . . . 1 . . Special Weapon 1 | . . . . . . . . 1 . . . . Impact Weapon . | . . . . . . . . . . . . . Slashing Weapon 1 | . 1 . . . . . . . . . . . Piercing Weapon . | . . . . . . . . . . . . . Special Melee Weapon . | . . . . . . . . . . . . . Unidentified Prototypes 3 | . . 1 . 1 . . . . . . . 1 Parts Lost 34 | . 5 4 1 2 1 . 1 6 . 14 . . Power 2 | . 1 . . . . . . . . 1 . . Propulsion 8 | . 2 . . . 1 . . 1 . 4 . . Utility 13 | . . 3 1 . . . 1 3 . 5 . . Weapon 11 | . 2 1 . 2 . . . 2 . 4 . . Highest Loss Streak 5 | . 3 1 1 1 1 . 1 4 . 5 . . To Critical Strikes 1 | . 1 . . . . . . . . . . . Average Backups 21 | 1 12 23 24 24 25 25 24 20 19 18 19 18 Power . | . 1 . . . . . . . 1 2 2 2 Propulsion 5 | . 1 6 8 6 7 7 6 4 5 5 5 5 Utility 8 | . 5 10 8 10 11 12 12 8 6 4 5 5 Weapon 5 | . 3 6 8 6 5 5 5 5 6 5 6 5 Tool/Special . | . . . . . . . . . . . . . Unused Backups 51 | . . 9 1 9 5 . 1 5 2 2 . 17 Power 3 | . . 1 . . . . . . . . . 2 Propulsion 12 | . . 3 . 3 . . . . 1 . . 5 Utility 16 | . . 3 1 2 3 . 1 2 1 . . 3 Weapon 17 | . . 2 . 3 2 . . 1 . 2 . 7 Tool/Special 3 | . . . . 1 . . . 2 . . . . Average Slot Usage (%) 96 | . 87 94 99 99 98 100 99 97 99 97 86 86 Engine 5 | . 4 8 11 4 3 . . . 12 1 . 2 Core 2 | . . . . 4 5 9 9 6 . 2 . . Reactor 1 | . . . . . . . . . . 8 13 10 Treads 27 | . 27 21 21 35 34 36 36 29 25 24 13 13 Device 6 | . 12 . . 2 9 7 8 12 6 10 13 13 Storage 9 | . 14 11 11 9 9 9 9 7 6 6 6 6 Processor 7 | . . 7 21 15 6 2 . . 12 6 6 6 Hackware 3 | . . . . . . . . 10 13 11 6 6 Protection 4 | . . 11 . . 2 9 9 4 . 1 6 6 Energy Gun 2 | . . . . . . . . 7 19 5 13 13 Ballistic Gun 23 | . 26 32 32 26 26 27 26 14 . 13 . . Peak Build Rating 99 | 6 9 22 22 32 36 36 34 50 66 96 96 99 Average Rating 33 | 4 7 17 21 26 30 34 33 37 64 76 96 94 On Entrance 38 | . 6 8 22 22 32 36 34 34 50 66 96 96 Naked Turns . | . . . . . . . . . . . . . Heaviest Build 137 | 12 45 137 97 97 105 108 108 106 84 85 85 90 Greatest Support 135 | 40 40 40 40 82 82 80 80 82 100 135 135 135 Greatest Overweight (x) 4 | . 2 4 2 1 1 1 1 1 1 . . 1 Average Overweight (x) . | . . 1 2 1 1 1 1 . . . . . Largest Inventory Capacity 25 | 8 20 25 25 25 25 25 25 25 20 20 20 20 Average Capacity 22 | 7 13 24 25 25 25 25 25 20 20 20 20 20 Most Carried 25 | 4 20 25 25 25 25 25 25 24 20 20 20 20 Average Carried 21 | 2 12 23 24 24 24 25 24 20 19 19 20 19 Final Capacity 25 | 8 20 25 25 25 25 25 25 20 20 20 20 20 Final Carried 25 | 4 19 25 25 25 25 25 25 20 20 20 20 20 Class Distribution -------------------- 34% | Scavenger-Tank 20% | Tank 17% | Gunner 11% | Mutant 10% | Scavenger-Gunner 3% | Skirmisher Dominant Class ---------------- Mutant | -10/Materials Tank | -9/Materials Gunner | -9/Mines Scavenger-Gunner | -8/Materials Scavenger-Tank | -8/Garrison Scavenger-Tank | -8/Materials Scavenger-Tank | -8/Garrison Scavenger-Tank | -7/Factory Skirmisher | -6/Factory Scavenger-Tank | -6/Garrison Tank | -6/Factory Tank | -6/DSF Resources | -11 -10 -9 -9 -8 -8 -8 -8 -7 -6 -6 -6 -6 ----------- Run | Yrd Mat Mat Min Mat Gar Mat Gar Fac Fac Gar Fac DSF Matter Collected 8377 | 253 430 1144 386 1355 936 119 749 889 102 1984 . 30 Remotely . | . . . . . . . . . . . . . Salvage Created 10538 | 18 609 1905 244 2071 931 239 974 665 169 2387 . 326 Parts 563 | 2 40 122 6 118 52 19 74 41 5 78 . 6 Haulers Intercepted 14 | . 2 6 . 4 . . . 1 . . . 1 Recyclers Shooed 6 | . . 1 . 2 . 1 . 2 . . . . Parts Field Recycled . | . . . . . . . . . . . . . Retrieved Matter . | . . . . . . . . . . . . . Parts Self-Destructed . | . . . . . . . . . . . . . Prevented . | . . . . . . . . . . . . . Kills | -11 -10 -9 -9 -8 -8 -8 -8 -7 -6 -6 -6 -6 ------- Run | Yrd Mat Mat Min Mat Gar Mat Gar Fac Fac Gar Fac DSF Combat Hostiles Destroyed 221 | . 15 36 15 35 23 5 27 19 3 39 . 4 Melee 1 | . . . . . . 1 . . . . . . Guns 185 | . 14 32 12 33 18 4 25 10 2 32 . 3 Cannons 1 | . . . . . . . . . . . . 1 AOE 31 | . 1 4 3 2 5 . 2 9 . 5 . . Classes Destroyed 21 | 1 5 5 2 4 1 . . 2 . 1 . . Worker 5 | . . 2 2 1 . . . . . . . . Builder 4 | . . . 1 1 . . . 2 . . . . Tunneler 2 | 1 . . . . . 1 . . . . . . Hauler 14 | . 2 6 . 4 . . . 1 . . . 1 Recycler 11 | . . 5 . 4 . . . 2 . . . . Mechanic 1 | . . 1 . . . . . . . . . . Operator 1 | . . 1 . . . . . . . . . . Watcher 8 | . 1 2 . 3 2 . . . . . . . Swarmer 54 | . 6 14 . 6 3 . 9 2 . 12 . 2 Grunt 74 | . 8 12 . 17 9 2 5 4 . 17 . . Brawler 3 | . . . . 1 1 1 . . . . . . Duelist 2 | . . . . 1 1 . . . . . . . Protector 2 | . . . . . . . . 2 . . . . Sentry 39 | . . 10 . 7 5 2 5 . 2 7 . 1 Specialist 7 | . . . . 2 1 . . 4 . . . . Hunter 9 | . . . . 1 2 . 2 4 . . . . Programmer 10 | . . . . . 1 . 6 2 1 . . . Heavy 2 | . . . . . . . . 1 . . . 1 Behemoth 3 | . . . . . . . . . . 3 . . Subdweller 1 | . 1 . . . . . . . . . . . Assembled 15 | . . . 15 . . . . . . . . . Savage 1 | . . . . . . . 1 . . . . . Best Kill Streak 11 | 1 3 9 5 5 5 2 6 11 1 8 . 3 Combat Bots Only 10 | . 3 6 3 3 5 2 6 10 1 8 . 3 Max Kills in Single Turn 5 | 1 1 2 3 2 2 1 2 5 1 2 . 1 Gunslinging 1 | . . . . . 1 . . . . 1 . . Exploded 5 | . 1 1 3 1 2 . 1 5 . 2 . . Melee 1 | . . . . . . 1 . . . . . . Uniques/NPCs Destroyed . | . . . . . . . . . . . . . Combat | -11 -10 -9 -9 -8 -8 -8 -8 -7 -6 -6 -6 -6 -------- Run | Yrd Mat Mat Min Mat Gar Mat Gar Fac Fac Gar Fac DSF Hostile Shots Fired 1096 | . 68 110 21 151 73 21 104 133 24 362 . 29 Missed 316 | . 11 32 2 48 23 9 31 43 8 102 . 7 Hits 780 | . 57 78 19 103 50 12 73 90 16 260 . 22 Melee 12 | . . . 11 1 . . . . . . . . Projectile 768 | . 57 78 8 102 50 12 73 90 16 260 . 22 Critical Strikes 24 | . 2 3 1 6 2 1 1 1 2 5 . . Actively Blocked 2 | . . . . . . . . . . 2 . . Part Disruptions 1 | . . . 1 . . . . . . . . . Damage Taken 11058 | . 708 950 461 1380 538 132 631 1568 159 3875 . 656 Core 1458 | . 120 69 70 72 16 10 54 176 17 388 . 466 Absorbed by Shields 1369 | . . . . 76 199 48 301 212 . 533 . . Regen/Repaired (Parts) 703 | . . 142 . 233 . . . 328 . . . . Core Remaining (%) 72 | 100 52 . 65 . . . 72 74 . . . . Volleys Fired 617 | 3 63 93 23 104 60 8 69 55 8 121 . 10 Largest 3 | 2 2 3 3 3 3 3 3 3 3 3 . 3 Hottest 265 | 40 60 76 82 82 89 78 89 140 140 265 . 265 Shots Fired 1677 | 6 126 277 69 311 160 22 168 128 24 356 . 30 Gun 1628 | 6 126 273 68 308 151 22 166 116 24 348 . 20 Cannon 13 | . . . . . . . . . . 3 . 10 Launcher 29 | . . 4 1 3 9 . 2 5 . 5 . . Special 7 | . . . . . . . . 7 . . . . Kinetic 1456 | 6 108 273 68 308 151 22 166 71 . 283 . . Thermal 167 | . . . . . . . . 45 24 68 . 30 Explosive 29 | . . 4 1 3 9 . 2 5 . 5 . . Electromagnetic 18 | . 18 . . . . . . . . . . . Robot Hit Streak 27 | 5 13 26 27 22 7 8 8 16 19 24 . 18 Robot Miss Streak 7 | . 4 5 2 3 5 2 5 4 2 7 . 2 Penetration Max 1 | . . . . . 1 1 1 . . 1 . . Secondary Targets 24 | . . 2 2 2 2 . 4 2 . 10 . . Max Gunslinging Chain 1 | . . 1 1 1 1 . 1 1 . 1 . . Shots Hit Robots 1074 | 5 88 175 41 214 74 15 77 80 14 270 . 21 Core Hits 619 | 2 33 73 30 91 45 8 51 59 7 206 . 14 Critical Kills 7 | . . . . 2 1 . . 1 . 3 . . Critical Parts Destroyed 7 | . . . . 1 1 . . 1 . 4 . . Critical Strikes 23 | . . . . 3 3 . . 5 . 12 . . Burn 8 | . . . . . . . . 3 . 5 . . Destroy 15 | . . . . 3 3 . . 2 . 7 . . Melee Attacks 4 | . 1 3 . . . . . . . . . . Impact . | . . . . . . . . . . . . . Slashing 4 | . 1 3 . . . . . . . . . . Piercing . | . . . . . . . . . . . . . Sneak Attacks . | . . . . . . . . . . . . . Combat Hostiles . | . . . . . . . . . . . . . Follow-up Attacks . | . . . . . . . . . . . . . Damage Inflicted 24086 | 72 1062 3024 796 3826 2159 331 1791 3305 396 6632 . 692 Guns 19742 | 69 1025 2634 626 3511 1493 330 1679 1574 396 5821 . 584 Cannons 166 | . . . . . . . . . . 58 . 108 Explosions 4099 | . 37 351 152 297 666 . 112 1731 . 753 . . Melee . | . . . . . . . . . . . . . Ramming 79 | 3 . 39 18 18 . 1 . . . . . . Kinetic 16514 | 69 871 2634 626 3511 1493 330 1679 864 . 4437 . . Thermal 3277 | . 37 . . . . . . 710 396 1442 . 692 Explosive 4062 | . . 351 152 297 666 . 112 1731 . 753 . . Electromagnetic 154 | . 154 . . . . . . . . . . . Impact . | . . . . . . . . . . . . . Slashing . | . . . . . . . . . . . . . Piercing . | . . . . . . . . . . . . . Highest Corruption 4 | . . . 4 . . . 2 4 . . . . Average Corruption 3 | . . . 4 . . . 1 2 . . . . Corruption Purged . | . . . . . . . . . . . . . Corruption Blocked . | . . . . . . . . . . . . . Effects 32 | . . . 18 . . . 5 9 . . . . Message Errors 3 | . . . 2 . . . . 1 . . . . Matter Fused 4 | . . . 2 . . . 1 1 . . . . Heat Flow Errors 5 | . . . 3 . . . 1 1 . . . . Energy Discharges 4 | . . . 3 . . . . 1 . . . . Data Loss (minor) 4 | . . . 2 . . . 1 1 . . . . Data Loss (major) 4 | . . . 2 . . . . 2 . . . . Misfires 3 | . . . 2 . . . 1 . . . . . Alerts 3 | . . . 1 . . . 1 1 . . . . Weapon Failures 2 | . . . 1 . . . . 1 . . . . Overload Shots . | . . . . . . . . . . . . . Overflow Damage 103 | . 25 5 . 36 37 . . . . . . . Projectiles . | . . . . . . . . . . . . . Explosions 103 | . 25 5 . 36 37 . . . . . . . Melee . | . . . . . . . . . . . . . Knockbacks 1 | . . 1 . . . . . . . . . . Impact 1 | . . 1 . . . . . . . . . . Kinetic . | . . . . . . . . . . . . . Secondary . | . . . . . . . . . . . . . Self-Inflicted Damage 346 | . 40 13 54 . 41 . . 104 . 94 . . Shots 11 | . 1 1 1 . 2 . . 5 . 1 . . Rammed 13 | 1 . 10 . 2 . . . . . . . . Targets Rammed 16 | 1 . 11 1 2 . 1 . . . . . . Kicked . | . . . . . . . . . . . . . Crushed 3 | . . 1 1 . . 1 . . . . . . Highest Temperature 790 | . 26 267 269 135 141 110 214 320 232 445 . 790 Average Temperature 78 | . 7 53 98 28 38 46 46 104 94 106 . 183 Received Heat Transfer 2982 | . 276 387 80 618 199 68 102 162 30 1024 . 36 Effects 29 | . . . . . . . . 3 . 6 . 20 Shutdowns 2 | . . . . . . . . . . 2 . . Energy Bleed 2 | . . . . . . . . 1 . . . 1 Interference 6 | . . . . . . . . 2 . 3 . 1 Matter Decay 2 | . . . . . . . . . . 1 . 1 Short Circuit 1 | . . . . . . . . . . . . 1 Damage (major) 13 | . . . . . . . . . . . . 13 Damage (core) 3 | . . . . . . . . . . . . 3 Siege Activations 1 | . . . . . . . . . . 1 . . Total Turns 5 | . . . . . . . . . . 5 . . Longest Duration 5 | . . . . . . . . . . 5 . . Martial Activations . | . . . . . . . . . . . . . Shielding Activations . | . . . . . . . . . . . . . Robots Disrupted . | . . . . . . . . . . . . . Combat Hostiles . | . . . . . . . . . . . . . Robots Corrupted . | . . . . . . . . . . . . . Combat Hostiles . | . . . . . . . . . . . . . Parts Fried . | . . . . . . . . . . . . . Impact Corruptions . | . . . . . . . . . . . . . Robots Melted 4 | . . . . . . . . . 1 2 . 1 Combat Hostiles 3 | . . . . . . . . . 1 2 . . Parts Melted 15 | . . . . . . . . 6 2 6 . 1 Heat Transferred 6059 | . 50 . . . . . . 1405 621 2860 . 1123 Parts Sabotaged . | . . . . . . . . . . . . . Parts Stolen . | . . . . . . . . . . . . . Parts Stripped . | . . . . . . . . . . . . . Power Chain Reactions 1 | . 1 . . . . . . . . . . . Alert | -11 -10 -9 -9 -8 -8 -8 -8 -7 -6 -6 -6 -6 ------- Run | Yrd Mat Mat Min Mat Gar Mat Gar Fac Fac Gar Fac DSF Maximum Alert Level 4 | . . 2 . 2 3 2 4 2 1 4 3 3 Low Security (%) 40 | 100 100 49 100 34 . . . . 90 11 . . Level 1 18 | . . 23 . 54 1 . 10 32 9 14 . . Level 2 22 | . . 27 . 10 27 100 29 67 . 20 . 33 Level 3 15 | . . . . . 70 . 52 . . 26 100 66 Level 4 3 | . . . . . . . 8 . . 26 . . Level 5 . | . . . . . . . . . . . . . High Security . | . . . . . . . . . . . . . Max Security . | . . . . . . . . . . . . . Sterilizations 1 | . . . . . . . . . . . . 1 Peak Influence 1373 | 5 68 579 158 528 1042 522 1181 619 230 1373 720 785 Initial 720 | . . 13 158 . 340 507 339 619 230 . 720 497 Average 366 | . 19 265 19 241 729 478 740 435 99 723 715 692 Influence Increases 6892 | 5 421 1147 20 1087 712 145 872 535 127 1513 . 308 Destroy 0b10 Robot/C 4200 | . 280 720 . 700 460 100 560 340 60 800 . 180 Destroy 0b10 Robot/NC 275 | 5 15 85 15 65 10 5 . 35 . 30 . 10 Destroy Leader 688 | . 66 176 . 184 20 40 40 62 30 40 . 30 Allied During Kill 43 | . . . . . . . 8 . . 5 . 30 Successful Hack 197 | . 11 31 . 35 28 . 35 18 21 18 . . Disable Machine 150 | . 15 30 . 30 . . . 45 15 . . 15 Anti-Garrison Action 750 | . . . . . 100 . 200 . . 450 . . Destroy Structure 334 | . 4 75 5 28 64 . 29 20 1 80 . 28 Lose Combat Pursuer 255 | . 30 30 . 45 30 . . 15 . 90 . 15 Influence Decreases 6107 | 5 389 772 427 563 194 665 213 1246 597 140 663 233 Entered New Map 2838 | . . 19 249 . 184 535 183 562 240 . 653 213 Time Decay 2609 | 5 349 563 178 543 . 130 . 474 357 . 10 . Lost Part 320 | . 40 40 . 20 10 . 10 60 . 140 . . Lost Ally 40 | . . . . . . . 20 . . . . 20 Purge Threat 300 | . . 150 . . . . . 150 . . . . Squads Dispatched 17 | . 1 1 . 6 . 1 . 5 2 . . 1 Investigation 4 | . 1 . . 3 . . . . . . . . Extermination 3 | . . . . . . . . 2 1 . . . Reinforcement 9 | . . 1 . 2 . 1 . 3 1 . . 1 Assault . | . . . . . . . . . . . . . Garrison 1 | . . . . 1 . . . . . . . . Intercept . | . . . . . . . . . . . . . Searches Triggered . | . . . . . . . . . . . . . Construction Impeded . | . . . . . . . . . . . . . Haulers Reinforced 1 | . . . . . . . . 1 . . . . Active Scanning Responses . | . . . . . . . . . . . . . Cargo Convoy Interrupts 1 | . . . . . . . . 1 . . . . Stealth | -11 -10 -9 -9 -8 -8 -8 -8 -7 -6 -6 -6 -6 --------- Run | Yrd Mat Mat Min Mat Gar Mat Gar Fac Fac Gar Fac DSF Distress Signals 11 | . 3 5 . 1 1 1 . . . . . . Communications Jammed . | . . . . . . . . . . . . . Distress Signals . | . . . . . . . . . . . . . Times Spotted 284 | . 23 52 14 52 25 9 26 26 5 44 . 8 Peak Tracking Total 12 | . 4 4 3 4 4 5 4 12 1 4 . 3 Tactical Retreats 14 | . 1 2 . 3 1 . . 1 . 5 . 1 Traps | -11 -10 -9 -9 -8 -8 -8 -8 -7 -6 -6 -6 -6 ------- Run | Yrd Mat Mat Min Mat Gar Mat Gar Fac Fac Gar Fac DSF Traps Triggered 20 | . 2 2 . 1 8 . 4 . 1 2 . . Indirectly . | . . . . . . . . . . . . . Trap Hack Attempts . | . . . . . . . . . . . . . Triggered . | . . . . . . . . . . . . . Disarmed . | . . . . . . . . . . . . . Reprogrammed . | . . . . . . . . . . . . . Reused . | . . . . . . . . . . . . . Traps Extracted . | . . . . . . . . . . . . . Installed . | . . . . . . . . . . . . . Triggered . | . . . . . . . . . . . . . Machines | -11 -10 -9 -9 -8 -8 -8 -8 -7 -6 -6 -6 -6 ---------- Run | Yrd Mat Mat Min Mat Gar Mat Gar Fac Fac Gar Fac DSF Machines Disabled 17 | . 1 2 . 2 . . 2 3 1 5 . 1 Max in Single Turn 2 | . 1 2 . 1 . . 1 1 1 1 . . Garrison Relay 6 | . . . . . . . 2 . . 4 . . Machines Repaired . | . . . . . . . . . . . . . Machines Dismantled . | . . . . . . . . . . . . . Machines Sabotaged . | . . . . . . . . . . . . . Overloaded Fab Kills . | . . . . . . . . . . . . . Hacking | -11 -10 -9 -9 -8 -8 -8 -8 -7 -6 -6 -6 -6 --------- Run | Yrd Mat Mat Min Mat Gar Mat Gar Fac Fac Gar Fac DSF Machines Accessed 42 | . 6 13 . 7 2 2 3 3 3 2 1 . Terminals 32 | . 6 9 . 5 2 1 3 2 1 2 1 . Fabricators 1 | . . . . . . . . . 1 . . . Repair Stations 4 | . . 2 . 1 . . . 1 . . . . Recycling Units 2 | . . 2 . . . . . . . . . . Scanalyzers . | . . . . . . . . . . . . . Garrison Access 3 | . . . . 1 . 1 . . 1 . . . Total Hacks 96 | . 14 30 . 21 3 3 3 11 5 4 2 . Successful 51 | . 6 19 . 8 2 1 3 6 3 2 1 . Failed 43 | . 7 10 . 13 1 2 . 5 2 2 1 . Catastrophic 10 | . 3 2 . 2 . 1 . 1 1 . . . Database Lockouts 2 | . 1 1 . . . . . . . . . . Manual 31 | . 7 15 . 6 . 2 . 1 . . . . Terminals 68 | . 14 23 . 12 3 2 3 4 1 4 2 . Fabricators 2 | . . . . . . . . . 2 . . . Repair Stations 19 | . . 4 . 8 . . . 7 . . . . Recycling Units 3 | . . 3 . . . . . . . . . . Scanalyzers . | . . . . . . . . . . . . . Garrison Access 4 | . . . . 1 . 1 . . 2 . . . Terminal Hacks 27 | . 6 11 . 1 2 . 3 1 . 2 1 . Robot Analysis 6 | . 3 2 . 1 . . . . . . . . Prototype ID Bank 2 | . . 2 . . . . . . . . . . Open Door 2 | . . . . . . . 1 . . 1 . . Open DSF 1 | . . . . . . . . . . . 1 . Level Access Points 1 | . . . . . . . . 1 . . . . Emergency Access Points 3 | . . . . . 1 . 1 . . 1 . . Alert Level 3 | . . 3 . . . . . . . . . . Unreport Threat 1 | . . 1 . . . . . . . . . . Locate Traps 1 | . 1 . . . . . . . . . . . Hauler Manifests 1 | . . 1 . . . . . . . . . . Registered Components 1 | . . 1 . . . . . . . . . . Zone Layout 3 | . 2 1 . . . . . . . . . . Garrison Registry 2 | . . . . . 1 . 1 . . . . . Fabricator Hacks 1 | . . . . . . . . . 1 . . . Build 1 | . . . . . . . . . 1 . . . Repair Station Hacks 14 | . . 4 . 5 . . . 5 . . . . Scan Component 8 | . . 2 . 3 . . . 3 . . . . Repair 6 | . . 2 . 2 . . . 2 . . . . Recycling Unit Hacks 3 | . . 3 . . . . . . . . . . Report Inventory 2 | . . 2 . . . . . . . . . . Retrieve Components 1 | . . 1 . . . . . . . . . . Scanalyzer . | . . . . . . . . . . . . . Garrison Access Hacks 4 | . . . . 1 . 1 . . 2 . . . Unlock Access 3 | . . . . 1 . 1 . . 1 . . . Coupler Status 1 | . . . . . . . . . 1 . . . Unauthorized Hacks 2 | . . 1 . 1 . . . . . . . . Terminals 2 | . . 1 . 1 . . . . . . . . Botnet 2 | . . 1 . 1 . . . . . . . . Fabricators . | . . . . . . . . . . . . . Repair Stations . | . . . . . . . . . . . . . Recycling Units . | . . . . . . . . . . . . . Scanalyzers . | . . . . . . . . . . . . . Garrison Access . | . . . . . . . . . . . . . Data Cores Recovered . | . . . . . . . . . . . . . Used . | . . . . . . . . . . . . . Hacking Detections 34 | . 6 11 . 6 1 1 2 3 2 2 . . Full Trace Events 4 | . 1 . . 2 . . . . . 1 . . Feedback Events . | . . . . . . . . . . . . . Feedback Blocked . | . . . . . . . . . . . . . Robot Schematics Acquired . | . . . . . . . . . . . . . Robots Built . | . . . . . . . . . . . . . Authchips . | . . . . . . . . . . . . . Time . | . . . . . . . . . . . . . Total Robot Build Rating . | . . . . . . . . . . . . . Part Schematics Acquired . | . . . . . . . . . . . . . Parts Built 2 | . . . . . . . . . 2 . . . Authchips . | . . . . . . . . . . . . . Time 39 | . . . . . . . . . 39 . . . Total Part Build Rating 14 | . . . . . . . . . 14 . . . Parts Repaired 6 | . . 2 . 2 . . . 2 . . . . Time 228 | . . 52 . 62 . . . 114 . . . . Parts Recycled . | . . . . . . . . . . . . . Recycled Matter . | . . . . . . . . . . . . . Retrieved Matter . | . . . . . . . . . . . . . Retrieved Components 1 | . . 1 . . . . . . . . . . Parts Scanalyzed . | . . . . . . . . . . . . . Part Schematics Acquired . | . . . . . . . . . . . . . Parts Damaged . | . . . . . . . . . . . . . Bothacking | -11 -10 -9 -9 -8 -8 -8 -8 -7 -6 -6 -6 -6 ------------ Run | Yrd Mat Mat Min Mat Gar Mat Gar Fac Fac Gar Fac DSF Used RIF Installer 4 | . . . . . 1 . 2 . . 1 . . Command Fork 1 | . . . . . . . 1 . . . . . Structural Interface 1 | . . . . . . . 1 . . . . . Autoassimilate 1 | . . . . . . . . . . 1 . . Robots Hacked 4 | . . . . . . . . 4 . . . . Non-combat 4 | . . . . . . . . 4 . . . . Combat . | . . . . . . . . . . . . . Robot Hacks Applied 6 | . . . . . . . . 6 . . . . find_chute 1 | . . . . . . . . 1 . . . . drop_inventory 2 | . . . . . . . . 2 . . . . check_alert 1 | . . . . . . . . 1 . . . . purge_threat 1 | . . . . . . . . 1 . . . . disarm_traps 1 | . . . . . . . . 1 . . . . Relay Couplers Released 28 | . . . . . . . 8 4 . 16 . . Machine Destruction 24 | . . . . . . . 8 . . 16 . . Programmers 4 | . . . . . . . . 4 . . . . Attached 4 | . . . . . . . . 2 . 2 . . Fabnet Peak Effective % . | . . . . . . . . . . . . . Robots Rewired 4 | . . . . . . . 2 . . 2 . . Allies Hacked . | . . . . . . . . . . . . . Hacks Repelled . | . . . . . . . . . . . . . Allies | -11 -10 -9 -9 -8 -8 -8 -8 -7 -6 -6 -6 -6 -------- Run | Yrd Mat Mat Min Mat Gar Mat Gar Fac Fac Gar Fac DSF Total Allies 4 | . . . . . . . 2 . . 2 . . Largest Group 2 | . . . . . . . 2 . . 2 2 2 Highest-Rated Group 264 | . . . . . . . 51 . . 264 264 264 Highest-Rated Ally 148 | . . . . . . . 31 . . 148 148 148 Total Orders . | . . . . . . . . . . . . . Ally Attacks 32 | . . . . . . . 8 . . 2 . 22 Total Damage 842 | . . . . . . . 142 . . 79 . 621 Kills 7 | . . . . . . . 1 . . 1 . 5 Allies Corrupted . | . . . . . . . . . . . . . Allies Melted . | . . . . . . . . . . . . . Intel | -11 -10 -9 -9 -8 -8 -8 -8 -7 -6 -6 -6 -6 ------- Run | Yrd Mat Mat Min Mat Gar Mat Gar Fac Fac Gar Fac DSF Active Infowar (turns) 7801 | . 1495 118 909 2200 1080 . . 1036 765 198 . . Optics 5152 | . . . 909 2200 1080 . . . 765 198 . . Sensors 585 | . . . . . . . . 23 558 4 . . Seismic 2626 | . 1495 118 . . . . . 1013 . . . . Robot Analysis Total 6 | . 3 2 . 1 . . . . . . . . Derelict Logs Recovered 1 | . . . 1 . . . . . . . . . Drone Launches . | . . . . . . . . . . . . . Drone Recoveries . | . . . . . . . . . . . . . Exploration | -11 -10 -9 -9 -8 -8 -8 -8 -7 -6 -6 -6 -6 ------------- Run | Yrd Mat Mat Min Mat Gar Mat Gar Fac Fac Gar Fac DSF Turns Passed 16260 | 72 1680 3550 1364 2200 1465 267 1311 1214 844 1904 36 353 Spaces Moved 5983 | 33 750 1000 402 701 520 98 441 547 424 871 11 185 Core 3 | 3 . . . . . . . . . . . . Treads 5980 | 30 750 1000 402 701 520 98 441 547 424 871 11 185 Legs . | . . . . . . . . . . . . . Wheels . | . . . . . . . . . . . . . Hover . | . . . . . . . . . . . . . Flight . | . . . . . . . . . . . . . Fastest Speed 50 | 50 160 240 320 236 238 242 242 158 165 160 165 165 Average Speed 223 | 150 188 309 320 238 240 242 242 162 168 161 165 166 Slowest Speed 480 | 160 320 480 320 240 243 242 242 242 246 165 165 250 Overloaded Moves . | . . . . . . . . . . . . . Propulsion Burnouts . | . . . . . . . . . . . . . Robots Hopped . | . . . . . . . . . . . . . Potential Cave-ins . | . . . . . . . . . . . . . Cave-ins Triggered . | . . . . . . . . . . . . . Exploration Rate (%) 59 | 4 95 95 89 59 72 14 68 15 13 99 . 96 Regions Visited 12 Branch Regions 1 Pre-discovered Areas 1 | . . . 1 . . . . . . . . . Known Exits Taken 5 | . . . . 1 . 1 . 1 1 . 1 . Unknown Exits Taken 4 | 1 1 1 1 . . . . . . . . . Scrap Searched 1 | . . . 1 . . . . . . . . . Spaces Dug 2 | . . 2 . . . . . . . . . . Terrain Destroyed 283 | . 3 82 5 21 23 . 14 18 . 117 . . Melee 2 | . . 2 . . . . . . . . . . Projectile 21 | . . . . . 1 . 5 . . 15 . . AOE 259 | . 3 80 5 21 22 . 9 17 . 102 . . Terrain Rammed . | . . . . . . . . . . . . . Walls Destroyed . | . . . . . . . . . . . . . Machines Disabled . | . . . . . . . . . . . . . Actions | -11 -10 -9 -9 -8 -8 -8 -8 -7 -6 -6 -6 -6 --------- Run | Yrd Mat Mat Min Mat Gar Mat Gar Fac Fac Gar Fac DSF Total 7690 | 46 894 1263 432 1061 640 112 582 781 538 1106 28 207 Wait 589 | . 43 84 . 170 11 . 16 129 78 40 17 1 Move 5976 | 33 749 999 401 701 519 98 440 546 424 870 11 185 Hop . | . . . . . . . . . . . . . Pick Up 110 | 4 17 24 2 18 7 . 3 9 8 14 . 4 Fast Attach 39 | 6 7 9 1 2 1 . . 7 3 3 . . Attach 32 | . 2 7 1 4 . . 1 4 2 11 . . Detach 4 | . . 1 . . . . . 1 . 2 . . Swap 123 | . 8 14 2 26 13 3 7 17 7 23 . 3 Drop 118 | . 4 18 1 34 13 2 7 13 8 14 . 4 Fire 617 | 3 63 93 23 104 60 8 69 55 8 121 . 10 Melee 4 | . 1 3 . . . . . . . . . . Ram . | . . . . . . . . . . . . . Kick . | . . . . . . . . . . . . . Crush 15 | . . 11 1 2 . 1 . . . . . . Escape Stasis 25 | . . . . . 16 . 8 . . 1 . . Rewire 38 | . . . . . . . 31 . . 7 . . Trap . | . . . . . . . . . . . . . Miscellaneous . | . . . . . . . . . . . . . Route ------- -11/Scrapyard -10/Materials (discovered 6 exits: *Mat x3 / [*Min x2] / [*Sub]) -9/Materials (discovered 5 exits: *Mat x3 / [*Min x2]) -9/Mines (discovered 2 exits: *Mat x2) -8/Materials (discovered 3 exits: *Fac x2 / Gar) -8/Garrison (discovered 4 exits: *Mat x4) -8/Materials -8/Garrison (discovered 3 exits: *Fac x3) -7/Factory (discovered 4 exits: *Fac x4) -6/Factory (discovered 2 exits: *Fac / Gar) -6/Garrison (discovered 3 exits: *Fac x3) -6/Factory -6/DSF (discovered 1 exit: *Fac) History --------- Turn | Location | Event 35 | -11/Scrapyard | Discovered new exit (range 14) 73 | -11/Scrapyard | Entered Materials 317 | -10/Materials | Build established: Mutant 590 | -10/Materials | Discovered new exit (range 5) 687 | -10/Materials | Central database locked down 703 | -10/Materials | Lost 3 parts (1p2w) 719 | -10/Materials | Discovered new exit (range 15) 787 | -10/Materials | Discovered new exit (range 15) 873 | -10/Materials | Derelicts attacked the area 1064 | -10/Materials | Discovered new exit (range 15) 1362 | -10/Materials | Discovered new exit (range 9) 1407 | -10/Materials | Discovered new exit (range 8) 1753 | -10/Materials | Entered another Materials area 1753 | -9/Materials | Evolved 2 slots: Utility x1, Weapon x1 2042 | -9/Materials | Repaired Lgt. Treads 2063 | -9/Materials | Build established: Tank 2659 | -9/Materials | Central database locked down 2685 | -9/Materials | Discovered new exit (range 16) 3360 | -9/Materials | Discovered new exit (range 16) 3625 | -9/Materials | Discovered new exit (range 16) 3991 | -9/Materials | Build established: Gunner 4281 | -9/Materials | Discovered new exit (range 3) 4479 | -9/Materials | Discovered new exit (range 15) 4555 | -9/Materials | Repaired Grenade Launcher 5303 | -9/Materials | Entered Mines 5327 | -9/Mines | Assembled infested the area 5332 | -9/Mines | Assisted by a Guerilla fighting off Assembled 5515 | -9/Mines | Learned location of Storage (-7) 5605 | -9/Mines | Received a Rocket Launcher from a helpful Derelict 5825 | -9/Mines | Discovered new exit (range 9) 6057 | -9/Mines | Discovered new exit (range 6) 6667 | -9/Mines | Entered Materials 6667 | -8/Materials | Evolved 2 slots: Propulsion x2 6734 | -8/Materials | Repaired Lgt. Treads 6771 | -8/Materials | Repaired Broken Lgt. Treads 6973 | -8/Materials | Build established: Scavenger-Gunner 8452 | -8/Materials | Discovered new exit (range 7) 8524 | -8/Materials | Build established: Scavenger-Tank 8776 | -8/Materials | Garrison activated, responded to threat 8850 | -8/Materials | Discovered new exit (range 13) 8867 | -8/Materials | Identified exit to Garrison 8867 | -8/Materials | Entered Garrison 8889 | -8/Garrison | Triggered checkpoint 9057 | -8/Garrison | Triggered checkpoint 9212 | -8/Garrison | Triggered checkpoint 9455 | -8/Garrison | Triggered checkpoint 9554 | -8/Garrison | Discovered new exit (range 13) 9569 | -8/Garrison | Discovered new exit (range 40) 9569 | -8/Garrison | Discovered new exit (range 61) 9569 | -8/Garrison | Discovered new exit (range 12) 9569 | -8/Garrison | Discovered new exit (range 18) 9811 | -8/Garrison | Triggered checkpoint 10062 | -8/Garrison | Installed Relay Interface Framework 10127 | -8/Garrison | Triggered checkpoint 10332 | -8/Garrison | Identified exit to Materials 10332 | -8/Garrison | Entered Materials 10599 | -8/Materials | Identified exit to Garrison 10599 | -8/Materials | Entered Garrison 10667 | -8/Garrison | Triggered checkpoint 10691 | -8/Garrison | Garrison Relay disabled 10951 | -8/Garrison | Triggered checkpoint 11075 | -8/Garrison | Discovered new exit (range 12) 11103 | -8/Garrison | Triggered checkpoint 11190 | -8/Garrison | Expanded RIF knowledge: Structural Interface 11473 | -8/Garrison | Triggered checkpoint 11489 | -8/Garrison | Triggered checkpoint 11637 | -8/Garrison | Discovered new exit (range 41) 11637 | -8/Garrison | Discovered new exit (range 49) 11637 | -8/Garrison | Discovered new exit (range 20) 11739 | -8/Garrison | Triggered checkpoint 11776 | -8/Garrison | Garrison Relay disabled 11810 | -8/Garrison | Expanded RIF knowledge: Command Fork 11910 | -8/Garrison | Entered Factory 11910 | -7/Factory | Evolved 2 slots: Utility x2 11974 | -7/Factory | Repaired Arm. Treads 12071 | -7/Factory | Repaired Broken Enh. Autogun 12687 | -7/Factory | Identified exit to Factory 12911 | -7/Factory | Cargo convoy interrupted 12967 | -7/Factory | Destroyed 10 combat bots 12969 | -7/Factory | Lost 4 parts (1n2u1w) 13124 | -7/Factory | Entered another Factory area 13124 | -6/Factory | Evolved 2 slots: Power x1, Utility x1 13700 | -6/Factory | Build established: Skirmisher 13765 | -6/Factory | Discovered new exit (range 4) 13770 | -6/Factory | Identified exit to Factory 13925 | -6/Factory | Fabricated Graphene Brace (x2) 13968 | -6/Factory | Identified exit to Garrison 13968 | -6/Factory | Entered Garrison 14058 | -6/Garrison | Triggered checkpoint 14075 | -6/Garrison | Garrison Relay disabled 14156 | -6/Garrison | Spotted B-75 Beast 14200 | -6/Garrison | Destroyed B-75 Beast 14226 | -6/Garrison | Lost 5 parts (1p1n2u1w) 14257 | -6/Garrison | Found Fusion Bomb Launcher 14308 | -6/Garrison | Triggered checkpoint 14408 | -6/Garrison | Triggered checkpoint 14453 | -6/Garrison | Triggered checkpoint 14496 | -6/Garrison | Destroyed 8 combat bots 14523 | -6/Garrison | Build established: Scavenger-Tank 14582 | -6/Garrison | Discovered new exit (range 13) 14608 | -6/Garrison | Triggered checkpoint 14640 | -6/Garrison | Garrison Relay disabled 14703 | -6/Garrison | Identified exit to Factory 14727 | -6/Garrison | Garrison Relay disabled 14848 | -6/Garrison | Triggered checkpoint 14882 | -6/Garrison | Garrison Relay disabled 15105 | -6/Garrison | Discovered exit to Factory (range 12) 15176 | -6/Garrison | Triggered checkpoint 15220 | -6/Garrison | Discovered exit to Factory (range 11) 15250 | -6/Garrison | Expanded RIF knowledge: Autoassimilate 15274 | -6/Garrison | Triggered checkpoint 15303 | -6/Garrison | Build established: Tank 15591 | -6/Garrison | Spotted B-90 Cyclops 15593 | -6/Garrison | Spotted B-90 Cyclops 15630 | -6/Garrison | Destroyed B-90 Cyclops 15651 | -6/Garrison | Lost 4 parts (3n1u) 15669 | -6/Garrison | Destroyed B-90 Cyclops 15744 | -6/Garrison | Rewired B-90 Cyclops 15769 | -6/Garrison | Rewired B-86 Titan 15872 | -6/Garrison | Entered Factory 15872 | -6/Factory | Accompanied by 2 allies 15904 | -6/Factory | Identified exit to DSF 15908 | -6/Factory | Entered DSF 15908 | -6/DSF | Accompanied by 2 allies 15927 | -6/DSF | Additional patrols routed to DSF 16018 | -6/DSF | Core integrity fell below 50% 16048 | -6/DSF | Discovered exit to Factory (range 7) 16105 | -6/DSF | Sterilization system engaged 16125 | -6/DSF | Ambient heat levels rising (+10) 16140 | -6/DSF | Ambient heat levels rising (+10) 16155 | -6/DSF | Ambient heat levels rising (+10) 16170 | -6/DSF | Ambient heat levels rising (+10) 16185 | -6/DSF | Ambient heat levels rising (+10) 16200 | -6/DSF | Ambient heat levels rising (+10) 16215 | -6/DSF | Ambient heat levels rising (+10) 16230 | -6/DSF | Ambient heat levels rising (+10) 16245 | -6/DSF | Ambient heat levels rising (+10) 16256 | -6/DSF | Core integrity fell below 20% 16260 | -6/DSF | Ambient heat levels rising (+10) 16262 | -6/DSF | Core destroyed Last Messages --------------- 16252_ Overheating: System interference. 16252_ Hvy. Ion Cannon temporarily disabled. 16253_ Overheating: Core damaged (-153). 16254_ Overheating: Energy bleed (-7). 16255_ Imp. Heavy Treads broken. 16255_ Overheating: Short circuit. 16256_ Overheating: Core damaged (-136). 16257_ Overheating: Hvy. Gatling Laser damaged (-24). 16257_ Overheating: Graphene Brace damaged (-38). 16257_ Overheating: Angular Momentum Engine damaged (-22). 16257_ Overheating: Arm. Heavy Treads damaged (-246). 16259_ Overheating: Matter decay (-42). 16260_ ALERT: Ambient heat levels +10. 16261_ Overheating: Hvy. Ion Cannon damaged (-21). 16262_ Overheating: Core damaged (-136). Map ----- +----------------------------------------------------+ | !!#!!!### ###????????????????????? | | !!#!!!### ###????????????????????? | | #######!! !!#????????????????????? | | ??????#!! !!#????????????????????? | | ??????#!! !!#????????????????????? | | ??????### ###????????????????????? | | ??????#]] !!#????????????????????? | | ??????#]] !!#????????????????????? | | ??????#]] !!#????????????????????? | | ######### #################??????? | | #!!!### ###!!!# ## !!#??????? | | #!!!##% ""!!!# ## !!#??????? | | !% ^ #??????? | | !% ^ ! = #??????? | | ! ^^ !%! [% #??????? | | !!"!!!##% %##!!!# ## #??????? | | !!#!!!### ###!!!# "# #??????? | | ######### ####+"###### ###??????? | | ??????#!! !!## "#??#&&%= #???????? | | ??????#!!^^^!!##%"##?#&&%= #???????? | | ??????#!!^ !!##%!!###&&* #???????? | | ??????### #####!!%#### ##???????? | | #?????#[ [ #?##"[##&& &#???????? | | ##????# [ #???"!##&& &#???????? | | !######[[[ ####"+#### ##???????? | | !!#!!!### ###&&&#&&#?# @###??????? | | !!#!!!"## ###&&&#&&## %""#??????? | | %!! %%"""?????? | | ! % %<""##"????? | | !!#!!!# !!! "&&&# ##""%""#??????? | | ####### !!! %#########"""""#??????? | | ??????#########???????##"####??????? | | ???????????????????????#"??????????? | | ????????????????????????"??????????? | | ???????????????????????????????????? | | ???????????????????????????????????? | | ???????????????????????????????????? | | ???????????????????????????????????? | | ???????????????????????????????????? | | | | | | | | | | | | | | | | | | | | | | | +----------------------------------------------------+ Best States ------------- Heat Dissipation 64 Energy Generation 33 Energy Capacity 480 Matter Stores 300 Matter Capacity 300 Sight Range 22 Robot Scan Range 15 Terrain Scan Density 10 Armor Coverage 300 Weapon Cycling 15 Evasion (%) 40 Targeting Accuracy 12 Recoil Reduction 4 Offensive Hacking 10 Defensive Hacking 10 Relay Coupler Types 1 Relay Coupler Value 28 Item Schematics ----------------- None Robot Schematics ------------------ None Fabricated ------------ Graphene Brace | x2 | -6/Factory | Preloaded Repaired ---------- Lgt. Treads | 31% | -9/Materials Grenade Launcher | 23% | -9/Materials Lgt. Treads | 18% | -8/Materials Lgt. Treads | 15% | -8/Materials | Broken Arm. Treads | 27% | -7/Factory Enh. Autogun | 31% | -7/Factory | Broken Alien Tech Used ----------------- None Achievements -------------- None Challenges ------------ None Game ------ Seed ChargeStormLattice Manual? 0 Play Time 01:23:21 Cumulative 189.8 hours Start 2025.09.23 @ 08:36:55 End 2025.09.23 @ 10:25:55 Sessions 1 Manual Loads 0 Difficulty Rogue Special Mode None Game No. 239 Rogue 239 Adventurer 0 Explorer 0 Win Type - Total 3 Types 3/0/0/0/0/0/0/0/0/0 Lore% 70 Gallery% 55 Achievement% 54 Wizard Run 0 Options --------- Layout 1 ASCII 0 Keyboard 1 Movement Numpad Keybinds 0 Fullscreen 1 Font 24/Smallcaps Map View 50x35 Zoom Use 0% Tactical HUD 1 Map Filters NONE Filters NONE Steam 1 RUN: 99f92ca6-077e-425c-a260-9bf22c240aa3